Cogmind - Beta 14 @@@ ROGUE MODE // 2025.03.07 @ 18:38:49 Player: Lava Result: Destroyed self via exploding Nuclear Reactor Performance ------------- Evolutions (1) 500 Regions Visited (2) 400 Robots Destroyed (34) 170 Value Destroyed (1008) 1008 Prototype IDs (0) 0 Alien Tech Used (0) 0 Bonus (0) 0 TOTAL SCORE: 2078 Bonus ------- None Cogmind --------- Core Integrity 0/400 Matter 280/300 Energy 204/250 System Corruption 13% Temperature Warm (126) Movement Core (1500) Ox29 Location -9/Materials Parts ------- > --- POWER (1) -------- Ion Engine > --- PROPULSION (3) --- (None) > --- UTILITY (3) ------ Huge Storage Unit Signal Interpreter Signal Interpreter > --- WEAPON (2) ------- Beam Cannon > --- INVENTORY (25) --- Wheel Wheel Hover Unit Hover Unit Improved Flight Unit Heat Sink Improved Heat Sink Sensor Array ECM Suite ECM Suite ECM Suite Tractor Beam EM Pulse Gun Small Laser Datajack Peak State ------------ > --- POWER ------------ Ion Engine > --- PROPULSION ------- Aluminum Leg Aluminum Leg Aluminum Leg > --- UTILITY ---------- Huge Storage Unit Visual Processing Unit ECM Suite > --- WEAPON ----------- Particle Gun Beam Cannon > --- INVENTORY -------- Ion Engine Ion Engine Aluminum Leg Aluminum Leg Hover Unit Hover Unit Heat Sink Heat Sink Improved Heat Sink Small Storage Unit Signal Interpreter ECM Suite ECM Suite ECM Suite EM Pulse Gun EM Pulse Gun EM Pulse Gun Small Laser Beam Cannon Light Assault Rifle Light Assault Rifle Datajack Datajack [Rating: 13] Favorites ----------- Power Ion Engine Engine Ion Engine Propulsion Aluminum Leg Leg Aluminum Leg Wheel Wheel Utility Huge Storage Unit Device ECM Suite Storage Huge Storage Unit Processor Visual Processing Unit Weapon Light Assault Rifle Energy Gun Particle Gun Energy Cannon Beam Cannon Ballistic Gun Light Assault Rifle Launcher Grenade Launcher Special Melee Weapon Datajack Build | -11 -10 -9 ------- Run | Yrd Mat Mat Slots Evolved 2 | . . 2 Power . | . . . Propulsion 1 | . . 1 Utility 1 | . . 1 Weapon . | . . . Parts Attached 37 | 5 18 14 Power 7 | 1 3 3 Engine 7 | 1 3 3 Core . | . . . Reactor . | . . . Propulsion 11 | 2 6 3 Treads . | . . . Leg 9 | . 6 3 Wheel 2 | 2 . . Hover . | . . . Flight . | . . . Utility 7 | . 4 3 Device 3 | . 2 1 Storage 1 | . 1 . Processor 3 | . 1 2 Hackware . | . . . Protection . | . . . Artifact . | . . . Weapon 12 | 2 5 5 Energy Gun 4 | . 1 3 Energy Cannon 2 | . 1 1 Ballistic Gun 4 | 2 2 . Ballistic Cannon . | . . . Launcher 1 | . 1 . Special Weapon . | . . . Impact Weapon . | . . . Slashing Weapon . | . . . Piercing Weapon . | . . . Special Melee Weapon 1 | . . 1 Unidentified Prototypes . | . . . Parts Lost 16 | . 4 12 Power 3 | . 1 2 Propulsion 7 | . 2 5 Utility 2 | . . 2 Weapon 4 | . 1 3 Highest Loss Streak 4 | . 4 4 To Critical Strikes . | . . . Average Slot Usage (%) 89 | . 85 95 Engine 11 | . 12 10 Leg 25 | . 21 32 Wheel 1 | . 2 . Device 3 | . . 9 Storage 12 | . 12 11 Processor 8 | . 7 10 Energy Gun 5 | . 2 9 Energy Cannon 5 | . 2 11 Ballistic Gun 12 | . 19 . Launcher 2 | . 3 . Peak Build Rating 13 | 5 11 13 Average Rating 9 | 3 7 12 On Entrance 5 | . 5 11 Naked Turns . | . . . Heaviest Build 93 | 5 91 93 Greatest Support 30 | 20 20 30 Greatest Overweight (x) 9 | . 8 9 Average Overweight (x) 2 | . 3 2 Largest Inventory Capacity 25 | 5 25 25 Average Capacity 22 | 5 23 25 Most Carried 25 | 5 25 25 Average Carried 15 | 2 13 21 Final Capacity 25 | 5 25 25 Final Carried 25 | 5 25 15 Class Distribution -------------------- 55% | Scavenger-Mutant 44% | Mutant Dominant Class ---------------- Mutant | -10/Materials Scavenger-Mutant | -9/Materials Resources | -11 -10 -9 ----------- Run | Yrd Mat Mat Matter Collected 893 | 266 349 278 Remotely . | . . . Salvage Created 1134 | 34 599 501 Parts 57 | 3 32 22 Haulers Intercepted . | . . . Recyclers Shooed 1 | . 1 . Parts Field Recycled . | . . . Retrieved Matter . | . . . Parts Self-Destructed . | . . . Prevented . | . . . Kills | -11 -10 -9 ------- Run | Yrd Mat Mat Combat Hostiles Destroyed 25 | 1 13 11 Guns 15 | 1 8 6 Cannons 4 | . . 4 AOE 6 | . 5 1 Classes Destroyed 6 | 1 3 2 Worker 3 | . 2 1 Recycler 1 | . 1 . Watcher 5 | . 3 2 Grunt 23 | 1 13 9 Brawler 1 | . . 1 Sentry 1 | . . 1 Best Kill Streak 7 | 1 7 3 Combat Bots Only 5 | 1 5 3 Max Kills in Single Turn 2 | 1 2 1 Gunslinging . | . . . Exploded 1 | . 1 1 Melee . | . . . Uniques/NPCs Destroyed . | . . . Combat | -11 -10 -9 -------- Run | Yrd Mat Mat Hostile Shots Fired 175 | 9 88 78 Missed 42 | 2 23 17 Damage Taken 1978 | 74 747 1157 Core 646 | 43 190 413 Absorbed by Shields . | . . . Core Remaining (%) 44 | 82 6 . Volleys Fired 120 | 8 70 42 Largest 2 | 2 2 2 Hottest 125 | 40 125 125 Shots Fired 192 | 16 110 66 Gun 143 | 16 100 27 Cannon 40 | . 1 39 Launcher 9 | . 9 . Special . | . . . Kinetic 115 | 16 99 . Thermal 62 | . 2 60 Explosive 9 | . 9 . Electromagnetic 6 | . . 6 Robot Hit Streak 11 | 5 11 7 Robot Miss Streak 6 | 3 6 4 Penetration Max . | . . . Secondary Targets 2 | . 2 . Max Gunslinging Chain 1 | . 1 . Shots Hit Robots 112 | 7 68 37 Core Hits 60 | 3 39 18 Critical Kills . | . . . Critical Parts Destroyed . | . . . Critical Strikes 1 | . . 1 Burn 1 | . . 1 Melee Attacks . | . . . Impact . | . . . Slashing . | . . . Piercing . | . . . Sneak Attacks . | . . . Combat Hostiles . | . . . Follow-up Attacks . | . . . Damage Inflicted 1899 | 68 1114 717 Guns 890 | 68 546 276 Cannons 415 | . 18 397 Explosions 594 | . 550 44 Melee . | . . . Ramming . | . . . Kinetic 596 | 68 528 . Thermal 659 | . 36 623 Explosive 594 | . 550 44 Electromagnetic 50 | . . 50 Impact . | . . . Slashing . | . . . Piercing . | . . . Highest Corruption 13 | . . 13 Average Corruption 12 | . . 12 Corruption Purged . | . . . Corruption Blocked . | . . . Effects 5 | . . 5 Message Errors 3 | . . 3 Energy Discharges 1 | . . 1 Data Loss (minor) 1 | . . 1 Overload Shots . | . . . Overflow Damage 50 | . 16 34 Projectiles 3 | . . 3 Explosions 47 | . 16 31 Melee . | . . . Knockbacks . | . . . Impact . | . . . Kinetic . | . . . Secondary . | . . . Self-Inflicted Damage 234 | . 20 214 Shots 4 | . 1 3 Rammed . | . . . Targets Rammed . | . . . Kicked . | . . . Crushed . | . . . Highest Temperature 663 | 12 63 663 Average Temperature 160 | 8 11 226 Received Heat Transfer 837 | 42 405 390 Effects 27 | . . 27 Shutdowns 4 | . . 4 Energy Bleed 2 | . . 2 Interference 5 | . . 5 Matter Decay 6 | . . 6 Short Circuit 2 | . . 2 Damage (minor) 4 | . . 4 Damage (major) 2 | . . 2 Damage (core) 2 | . . 2 Siege Activations . | . . . Robots Corrupted . | . . . Combat Hostiles . | . . . Parts Fried . | . . . Impact Corruptions . | . . . Robots Melted . | . . . Combat Hostiles . | . . . Parts Melted 2 | . 1 1 Heat Transferred 1517 | . 74 1443 Parts Sabotaged . | . . . Parts Stolen . | . . . Parts Stripped . | . . . Power Chain Reactions 1 | . . 1 Alert | -11 -10 -9 ------- Run | Yrd Mat Mat Peak Influence 205 | 20 205 127 Initial 17 | . 13 17 Average 67 | 4 83 48 Maximum Alert Level 1 | . 1 . Low Security (%) 88 | 100 80 100 Level 1 11 | . 19 . Level 2 . | . . . Level 3 . | . . . Level 4 . | . . . Level 5 . | . . . High Security . | . . . Max Security . | . . . Squads Dispatched 6 | . 4 2 Investigation 4 | . 2 2 Extermination . | . . . Reinforcement 2 | . 2 . Assault . | . . . Garrison . | . . . Intercept . | . . . Searches Triggered . | . . . Construction Impeded . | . . . Haulers Reinforced . | . . . Active Scanning Responses . | . . . Cargo Convoy Interrupts . | . . . Stealth | -11 -10 -9 --------- Run | Yrd Mat Mat Distress Signals 3 | . 2 1 Communications Jammed . | . . . Distress Signals . | . . . Times Spotted 36 | 1 21 14 Peak Tracking Total 4 | 1 4 4 Tactical Retreats 2 | . . 2 Traps | -11 -10 -9 ------- Run | Yrd Mat Mat Traps Triggered 2 | . 2 . Indirectly . | . . . Trap Hack Attempts . | . . . Triggered . | . . . Disarmed . | . . . Reprogrammed . | . . . Reused . | . . . Traps Extracted . | . . . Installed . | . . . Triggered . | . . . Machines | -11 -10 -9 ---------- Run | Yrd Mat Mat Machines Disabled 3 | . 1 2 Max in Single Turn 1 | . 1 1 Machines Repaired . | . . . Machines Dismantled . | . . . Machines Sabotaged . | . . . Overloaded Fab Kills . | . . . Hacking | -11 -10 -9 --------- Run | Yrd Mat Mat Machines Accessed 8 | . 5 3 Terminals 6 | . 4 2 Fabricators . | . . . Repair Stations . | . . . Recycling Units 1 | . 1 . Scanalyzers 1 | . . 1 Garrison Access . | . . . Total Hacks 32 | . 21 11 Successful 15 | . 10 5 Failed 17 | . 11 6 Catastrophic 2 | . . 2 Database Lockouts . | . . . Manual . | . . . Terminals 26 | . 18 8 Fabricators . | . . . Repair Stations . | . . . Recycling Units 3 | . 3 . Scanalyzers 3 | . . 3 Garrison Access . | . . . Terminal Hacks 11 | . 8 3 Record 8 | . 7 1 Scanalyzer Index 1 | . 1 . Alert Level 1 | . . 1 Dispatch Records 1 | . . 1 Fabricator Hacks . | . . . Repair Station Hacks . | . . . Recycling Unit Hacks 2 | . 2 . Recycle Component 1 | . 1 . Process 1 | . 1 . Scanalyzer 2 | . . 2 Insert Component 1 | . . 1 Analyze 1 | . . 1 Garrison Access Hacks . | . . . Unauthorized Hacks . | . . . Terminals . | . . . Fabricators . | . . . Repair Stations . | . . . Recycling Units . | . . . Scanalyzers . | . . . Garrison Access . | . . . Data Cores Recovered . | . . . Used . | . . . Hacking Detections 8 | . 5 3 Full Trace Events 7 | . 5 2 Feedback Events . | . . . Feedback Blocked . | . . . Robot Schematics Acquired . | . . . Robots Built . | . . . Authchips . | . . . Time . | . . . Total Robot Build Rating . | . . . Part Schematics Acquired 1 | . . 1 Parts Built . | . . . Authchips . | . . . Time . | . . . Total Part Build Rating . | . . . Parts Repaired . | . . . Time . | . . . Parts Recycled 1 | . 1 . Recycled Matter 204 | . 204 . Retrieved Matter . | . . . Retrieved Components . | . . . Parts Scanalyzed 1 | . . 1 Part Schematics Acquired 1 | . . 1 Parts Damaged . | . . . Bothacking | -11 -10 -9 ------------ Run | Yrd Mat Mat Used RIF Installer . | . . . Robots Hacked . | . . . Non-combat . | . . . Combat . | . . . Robot Hacks Applied . | . . . Relay Couplers Released . | . . . Fabnet Peak Effective % . | . . . Robots Rewired . | . . . Allies Hacked . | . . . Hacks Repelled . | . . . Allies | -11 -10 -9 -------- Run | Yrd Mat Mat Total Allies . | . . . Largest Group . | . . . Highest-Rated Group . | . . . Highest-Rated Ally . | . . . Total Orders . | . . . Ally Attacks . | . . . Total Damage . | . . . Kills . | . . . Allies Corrupted . | . . . Allies Melted . | . . . Intel | -11 -10 -9 ------- Run | Yrd Mat Mat Robot Analysis Total . | . . . Derelict Logs Recovered . | . . . Drone Launches . | . . . Drone Recoveries . | . . . Exploration | -11 -10 -9 ------------- Run | Yrd Mat Mat Turns Passed 2697 | 125 1583 989 Spaces Moved 758 | 117 376 265 Core 20 | 20 . . Treads . | . . . Legs 541 | . 276 265 Wheels 197 | 97 100 . Hover . | . . . Flight . | . . . Fastest Speed 50 | 50 80 260 Average Speed 299 | 74 353 322 Slowest Speed 750 | 80 680 750 Overloaded Moves . | . . . Propulsion Burnouts . | . . . Robots Hopped . | . . . Cave-ins Triggered . | . . . Exploration Rate (%) 27 | 8 51 23 Regions Visited 2 Branch Regions . Pre-discovered Areas . | . . . Known Exits Taken . | . . . Unknown Exits Taken 2 | 1 1 . Scrap Searched . | . . . Spaces Dug . | . . . Terrain Destroyed 100 | . 52 48 Melee . | . . . Projectile . | . . . AOE 100 | . 52 48 Terrain Rammed . | . . . Walls Destroyed . | . . . Machines Disabled . | . . . Actions | -11 -10 -9 --------- Run | Yrd Mat Mat Total 1018 | 141 541 336 Wait 45 | 2 42 1 Move 756 | 116 375 265 Hop . | . . . Pick Up 50 | 10 33 7 Fast Attach . | . . . Attach 30 | 5 13 12 Detach 2 | . 2 . Swap 7 | . 5 2 Drop 8 | . 1 7 Fire 120 | 8 70 42 Melee . | . . . Ram . | . . . Kick . | . . . Crush . | . . . Escape Stasis . | . . . Rewire . | . . . Trap . | . . . Miscellaneous . | . . . Route ------- -11/Scrapyard -10/Materials (discovered 3 exits: *Mat x2 / [*Sub]) -9/Materials History --------- Turn | Location | Event 2 | -11/Scrapyard | Met Revision 17 77 | -11/Scrapyard | Discovered new exit (range 8) 126 | -11/Scrapyard | Entered Materials 208 | -10/Materials | Discovered new exit (range 15) 317 | -10/Materials | Build established: Mutant 551 | -10/Materials | Core integrity fell below 50% 613 | -10/Materials | Lost 4 parts (1p2n1w) 1315 | -10/Materials | Core integrity fell below 20% 1404 | -10/Materials | Discovered new exit (range 11) 1405 | -10/Materials | Build established: Scavenger-Mutant 1656 | -10/Materials | Discovered new exit (range 13) 1709 | -10/Materials | Entered another Materials area 1709 | -9/Materials | Evolved 2 slots: Propulsion x1, Utility x1 2351 | -9/Materials | Core integrity fell below 50% 2365 | -9/Materials | Core integrity fell below 20% 2402 | -9/Materials | Lost 4 parts (1p2n1w) 2589 | -9/Materials | System corruption reached 10% 2622 | -9/Materials | Lost 4 parts (1p2u1w) 2698 | -9/Materials | Destroyed self via exploding Nuclear Reactor Last Messages --------------- Current Alert Level: Low Security ALERT: Suspicious activity at Terminal M005. Dispatching Investigation squad. :&R|2LAM5=K